Workbook

Sheet Payroll Input
B1: PAYROLL CALCULATOR | K1: PERIOD ENDING: | L1: 41372 | N1: COMPANY NAME: | P1: ADVENTURE WORKS
B3: ID | C3: Employee Name | D3: Reg Hours Worked | E3: Vacation Hours | F3: Sick Hours | G3: Overtime Hours | H3: Overtime Rate | I3: Gross Pay | J3: Taxes and Ded's | K3: Other Ded's | L3: Net Pay | N3: Hourly Wage | O3: Tax Status | P3: Federal Allow. | Q3: State Tax | R3: Federal Income Tax | S3: Soc. Security Tax | T3: Medicare Tax | U3: Total Taxes Withheld | V3: Insurance Deduction | W3: Other Reg. Deduction | X3: Total Reg. Deductions
B4: 1001 | C4: Tony Smith | D4: 50 | E4: 5 | F4: 1 | I4: =SUM(Employees[[#This Row],[Reg Hours Worked]:[Sick Hours]])*Employees[[#This Row],[Hourly Wage]]+Employees[[#This Row],[Overtime Hours]]*Employees[[#This Row],[Overtime Rate]] -> 560 | J4: =Employees[[#This Row],[Gross Pay]]*Employees[[#This Row],[Total Taxes Withheld]] + Employees[[#This Row],[Total Reg. Deductions]] -> 273.08 | K4: 20 | L4: =Employees[[#This Row],[Gross Pay]]-Employees[[#This Row],[Taxes and Ded''s]]-Employees[[#This Row],[Other Ded''s]] -> 266.92 | N4: 10 | O4: 1 | P4: 4 | Q4: 0.023 | R4: 0.28 | S4: 0.063 | T4: 0.0145 | U4: =SUM(Employees[[#This Row],[State Tax]:[Medicare Tax]]) -> 0.3805 | V4: 20 | W4: 40 | X4: =SUM(Employees[[#This Row],[Insurance Deduction]:[Other Reg. Deduction]]) -> 60
B5: 1002 | C5: David Jones | D5: 40 | I5: =SUM(Employees[[#This Row],[Reg Hours Worked]:[Sick Hours]])*Employees[[#This Row],[Hourly Wage]]+Employees[[#This Row],[Overtime Hours]]*Employees[[#This Row],[Overtime Rate]] -> 320 | J5: =Employees[[#This Row],[Gross Pay]]*Employees[[#This Row],[Total Taxes Withheld]] + Employees[[#This Row],[Total Reg. Deductions]] -> 131.76 | L5: =Employees[[#This Row],[Gross Pay]]-Employees[[#This Row],[Taxes and Ded''s]]-Employees[[#This Row],[Other Ded''s]] -> 188.24 | N5: 8 | O5: 1 | P5: 1 | Q5: 0.023 | R5: 0.28 | S5: 0.063 | T5: 0.0145 | U5: =SUM(Employees[[#This Row],[State Tax]:[Medicare Tax]]) -> 0.3805 | V5: 0 | W5: 10 | X5: =SUM(Employees[[#This Row],[Insurance Deduction]:[Other Reg. Deduction]]) -> 10
B6: 1003 | C6: Denise Smith | D6: 35 | E6: 3 | I6: =SUM(Employees[[#This Row],[Reg Hours Worked]:[Sick Hours]])*Employees[[#This Row],[Hourly Wage]]+Employees[[#This Row],[Overtime Hours]]*Employees[[#This Row],[Overtime Rate]] -> 532 | J6: =Employees[[#This Row],[Gross Pay]]*Employees[[#This Row],[Total Taxes Withheld]] + Employees[[#This Row],[Total Reg. Deductions]] -> 240.426 | L6: =Employees[[#This Row],[Gross Pay]]-Employees[[#This Row],[Taxes and Ded''s]]-Employees[[#This Row],[Other Ded''s]] -> 291.574 | N6: 14 | O6: 1 | P6: 3 | Q6: 0.023 | R6: 0.28 | S6: 0.063 | T6: 0.0145 | U6: =SUM(Employees[[#This Row],[State Tax]:[Medicare Tax]]) -> 0.3805 | V6: 18 | W6: 20 | X6: =SUM(Employees[[#This Row],[Insurance Deduction]:[Other Reg. Deduction]]) -> 38
B7: 1008 | C7: Sebastien Motte | D7: 50 | E7: 5 | F7: 1 | I7: =SUM(Employees[[#This Row],[Reg Hours Worked]:[Sick Hours]])*Employees[[#This Row],[Hourly Wage]]+Employees[[#This Row],[Overtime Hours]]*Employees[[#This Row],[Overtime Rate]] -> 1120 | J7: =Employees[[#This Row],[Gross Pay]]*Employees[[#This Row],[Total Taxes Withheld]] + Employees[[#This Row],[Total Reg. Deductions]] -> 441.16 | L7: =Employees[[#This Row],[Gross Pay]]-Employees[[#This Row],[Taxes and Ded''s]]-Employees[[#This Row],[Other Ded''s]] -> 678.84 | N7: 20 | O7: 1 | P7: 0 | Q7: 0.023 | R7: 0.28 | S7: 0.063 | T7: 0.0145 | U7: =SUM(Employees[[#This Row],[State Tax]:[Medicare Tax]]) -> 0.3805 | V7: 15 | X7: =SUM(Employees[[#This Row],[Insurance Deduction]:[Other Reg. Deduction]]) -> 15
B8: 1011 | C8: Isabelle Scemla | D8: 40 | G8: 2 | H8: 15 | I8: =SUM(Employees[[#This Row],[Reg Hours Worked]:[Sick Hours]])*Employees[[#This Row],[Hourly Wage]]+Employees[[#This Row],[Overtime Hours]]*Employees[[#This Row],[Overtime Rate]] -> 430 | J8: =Employees[[#This Row],[Gross Pay]]*Employees[[#This Row],[Total Taxes Withheld]] + Employees[[#This Row],[Total Reg. Deductions]] -> 223.615 | L8: =Employees[[#This Row],[Gross Pay]]-Employees[[#This Row],[Taxes and Ded''s]]-Employees[[#This Row],[Other Ded''s]] -> 206.385 | N8: 10 | O8: 1 | P8: 0 | Q8: 0.023 | R8: 0.28 | S8: 0.063 | T8: 0.0145 | U8: =SUM(Employees[[#This Row],[State Tax]:[Medicare Tax]]) -> 0.3805 | V8: 20 | W8: 40 | X8: =SUM(Employees[[#This Row],[Insurance Deduction]:[Other Reg. Deduction]]) -> 60
B9: 1012 | C9: David Bristol | D9: 40 | E9: 5 | F9: 1 | I9: =SUM(Employees[[#This Row],[Reg Hours Worked]:[Sick Hours]])*Employees[[#This Row],[Hourly Wage]]+Employees[[#This Row],[Overtime Hours]]*Employees[[#This Row],[Overtime Rate]] -> 552 | J9: =Employees[[#This Row],[Gross Pay]]*Employees[[#This Row],[Total Taxes Withheld]] + Employees[[#This Row],[Total Reg. Deductions]] -> 270.036 | L9: =Employees[[#This Row],[Gross Pay]]-Employees[[#This Row],[Taxes and Ded''s]]-Employees[[#This Row],[Other Ded''s]] -> 281.964 | N9: 12 | O9: 1 | P9: 4 | Q9: 0.023 | R9: 0.28 | S9: 0.063 | T9: 0.0145 | U9: =SUM(Employees[[#This Row],[State Tax]:[Medicare Tax]]) -> 0.3805 | V9: 20 | W9: 40 | X9: =SUM(Employees[[#This Row],[Insurance Deduction]:[Other Reg. Deduction]]) -> 60
B10: 1025 | C10: Anne Weiler | D10: 36 | F10: 2 | G10: 1 | H10: 18 | I10: =SUM(Employees[[#This Row],[Reg Hours Worked]:[Sick Hours]])*Employees[[#This Row],[Hourly Wage]]+Employees[[#This Row],[Overtime Hours]]*Employees[[#This Row],[Overtime Rate]] -> 474 | J10: =Employees[[#This Row],[Gross Pay]]*Employees[[#This Row],[Total Taxes Withheld]] + Employees[[#This Row],[Total Reg. Deductions]] -> 225.357 | K10: 25 | L10: =Employees[[#This Row],[Gross Pay]]-Employees[[#This Row],[Taxes and Ded''s]]-Employees[[#This Row],[Other Ded''s]] -> 223.643 | N10: 12 | O10: 1 | P10: 2 | Q10: 0.023 | R10: 0.28 | S10: 0.063 | T10: 0.0145 | U10: =SUM(Employees[[#This Row],[State Tax]:[Medicare Tax]]) -> 0.3805 | V10: 25 | W10: 20 | X10: =SUM(Employees[[#This Row],[Insurance Deduction]:[Other Reg. Deduction]]) -> 45
B11: 1032 | C11: Luka Abrus | D11: 40 | E11: 5 | F11: 1 | I11: =SUM(Employees[[#This Row],[Reg Hours Worked]:[Sick Hours]])*Employees[[#This Row],[Hourly Wage]]+Employees[[#This Row],[Overtime Hours]]*Employees[[#This Row],[Overtime Rate]] -> 460 | J11: =Employees[[#This Row],[Gross Pay]]*Employees[[#This Row],[Total Taxes Withheld]] + Employees[[#This Row],[Total Reg. Deductions]] -> 175.03 | K11: 50 | L11: =Employees[[#This Row],[Gross Pay]]-Employees[[#This Row],[Taxes and Ded''s]]-Employees[[#This Row],[Other Ded''s]] -> 234.97 | N11: 10 | O11: 1 | P11: 3 | Q11: 0.023 | R11: 0.28 | S11: 0.063 | T11: 0.0145 | U11: =SUM(Employees[[#This Row],[State Tax]:[Medicare Tax]]) -> 0.3805 | X11: =SUM(Employees[[#This Row],[Insurance Deduction]:[Other Reg. Deduction]]) -> 0
B12: 1049 | C12: David Ludwig | D12: 40 | E12: 1 | I12: =SUM(Employees[[#This Row],[Reg Hours Worked]:[Sick Hours]])*Employees[[#This Row],[Hourly Wage]]+Employees[[#This Row],[Overtime Hours]]*Employees[[#This Row],[Overtime Rate]] -> 615 | J12: =Employees[[#This Row],[Gross Pay]]*Employees[[#This Row],[Total Taxes Withheld]] + Employees[[#This Row],[Total Reg. Deductions]] -> 259.0075 | K12: 23 | L12: =Employees[[#This Row],[Gross Pay]]-Employees[[#This Row],[Taxes and Ded''s]]-Employees[[#This Row],[Other Ded''s]] -> 332.9925 | N12: 15 | O12: 1 | P12: 2 | Q12: 0.023 | R12: 0.28 | S12: 0.063 | T12: 0.0145 | U12: =SUM(Employees[[#This Row],[State Tax]:[Medicare Tax]]) -> 0.3805 | V12: 25 | X12: =SUM(Employees[[#This Row],[Insurance Deduction]:[Other Reg. Deduction]]) -> 25
B13: Totals | C13: =SUBTOTAL(103,Employees[Employee Name]) -> 9 | D13: =SUBTOTAL(109,Employees[Reg Hours Worked]) -> 371 | E13: =SUBTOTAL(109,Employees[Vacation Hours]) -> 24 | F13: =SUBTOTAL(109,Employees[Sick Hours]) -> 6 | G13: =SUBTOTAL(109,Employees[Overtime Hours]) -> 3 | I13: =SUBTOTAL(109,Employees[Gross Pay]) -> 5063 | J13: =SUBTOTAL(109,Employees[Taxes and Ded''s]) -> 2239.4715 | K13: =SUBTOTAL(109,Employees[Other Ded''s]) -> 118 | L13: =SUBTOTAL(109,Employees[Net Pay]) -> 2705.5285 | V13: =SUBTOTAL(109,Employees[Insurance Deduction]) -> 143 | W13: =SUBTOTAL(109,Employees[Other Reg. Deduction]) -> 170 | X13: =SUBTOTAL(109,Employees[Total Reg. Deductions]) -> 313

Sheet stubs_template (hidden)
C2: =CompanyName -> ADVENTURE WORKS
C3: PERIOD | D3: =PeriodEnding -> 41372 | G3: NAME | H3: =IFERROR(INDEX(Employees[Employee Name],Stub),"") -> Tony Smith | K3: EMPLOYEE ID | L3: =IFERROR(INDEX(Employees[ID],Stub),"") -> 1001
C4: Tax Status | E4: =IFERROR(INDEX(Employees[Tax Status],Stub),"") -> 1 | G4: Federal Allowance (From W-4) | I4: =IFERROR(INDEX(Employees[Federal Allow.],Stub),"") -> 4 | K4: Hours Worked | M4: =IFERROR(INDEX(Employees[Reg Hours Worked],Stub),"") -> 50
C5: Hourly Rate | E5: =IFERROR(INDEX(Employees[Hourly Wage],Stub),"") -> 10 | G5: Overtime Rate | I5: =IFERROR(INDEX(Employees[Overtime Rate],Stub),"") -> 0 | K5: Sick Hours | M5: =IFERROR(INDEX(Employees[Sick Hours],Stub),"") -> 1
C6: Social Security Tax | E6: =IFERROR(INDEX(Employees[Soc. Security Tax],Stub) * INDEX(Employees[Gross Pay],Stub),"") -> 35.28 | G6: Federal Income Tax | I6: =IFERROR(INDEX(Employees[Federal Income Tax],Stub) * INDEX(Employees[Gross Pay],Stub),"") -> 156.8 | K6: Vacation Hours | M6: =IFERROR(INDEX(Employees[Vacation Hours],Stub),"") -> 5
C7: Medicare Tax | E7: =IFERROR(INDEX(Employees[Medicare Tax],Stub) * INDEX(Employees[Gross Pay],Stub),"") -> 8.12 | G7: State Tax | I7: =IFERROR(INDEX(Employees[State Tax],Stub) * INDEX(Employees[Gross Pay],Stub),"") -> 12.88 | K7: Overtime Hours | M7: =IFERROR(INDEX(Employees[Overtime Hours],Stub),"") -> 0
C8: Insurance Deduction | E8: =IFERROR(INDEX(Employees[Insurance Deduction],Stub),"") -> 20 | G8: Other Regular Deduction | I8: =IFERROR(INDEX(Employees[Other Reg. Deduction],Stub),"") -> 40 | K8: Gross Pay | M8: =IFERROR(INDEX(Employees[Gross Pay],Stub),"") -> 560
C9: Total Taxes and | E9: =IFERROR(INDEX(Employees[Taxes and Ded''s],Stub),"") -> 273.08 | G9: Other Deduction | I9: =IFERROR(INDEX(Employees[Other Ded''s],Stub),"") -> 20 | K9: Total Taxes and Deductions | M9: =IFERROR(INDEX(Employees[Taxes and Ded''s],Stub) + INDEX(Employees[Other Ded''s],Stub),"") -> 293.08
C10: Regular Deductions
K11: NET PAY | M11: =IFERROR(INDEX(Employees[Net Pay],Stub),"") -> 266.92
C14: =CompanyName -> ADVENTURE WORKS
C15: PERIOD | D15: =PeriodEnding -> 41372 | G15: NAME | H15: =IFERROR(INDEX(Employees[Employee Name],Stub),"") -> David Jones | K15: EMPLOYEE ID | L15: =IFERROR(INDEX(Employees[ID],Stub),"") -> 1002
C16: Tax Status | E16: =IFERROR(INDEX(Employees[Tax Status],Stub),"") -> 1 | G16: Federal Allowance (From W-4) | I16: =IFERROR(INDEX(Employees[Federal Allow.],Stub),"") -> 1 | K16: Hours Worked | M16: =IFERROR(INDEX(Employees[Reg Hours Worked],Stub),"") -> 40
C17: Hourly Rate | E17: =IFERROR(INDEX(Employees[Hourly Wage],Stub),"") -> 8 | G17: Overtime Rate | I17: =IFERROR(INDEX(Employees[Overtime Rate],Stub),"") -> 0 | K17: Sick Hours | M17: =IFERROR(INDEX(Employees[Sick Hours],Stub),"") -> 0
C18: Social Security Tax | E18: =IFERROR(INDEX(Employees[Soc. Security Tax],Stub) * INDEX(Employees[Gross Pay],Stub),"") -> 20.16 | G18: Federal Income Tax | I18: =IFERROR(INDEX(Employees[Federal Income Tax],Stub) * INDEX(Employees[Gross Pay],Stub),"") -> 89.6 | K18: Vacation Hours | M18: =IFERROR(INDEX(Employees[Vacation Hours],Stub),"") -> 0
C19: Medicare Tax | E19: =IFERROR(INDEX(Employees[Medicare Tax],Stub) * INDEX(Employees[Gross Pay],Stub),"") -> 4.64 | G19: State Tax | I19: =IFERROR(INDEX(Employees[State Tax],Stub) * INDEX(Employees[Gross Pay],Stub),"") -> 7.36 | K19: Overtime Hours | M19: =IFERROR(INDEX(Employees[Overtime Hours],Stub),"") -> 0
C20: Insurance Deduction | E20: =IFERROR(INDEX(Employees[Insurance Deduction],Stub),"") -> 0 | G20: Other Regular Deduction | I20: =IFERROR(INDEX(Employees[Other Reg. Deduction],Stub),"") -> 10 | K20: Gross Pay | M20: =IFERROR(INDEX(Employees[Gross Pay],Stub),"") -> 320
C21: Total Taxes and | E21: =IFERROR(INDEX(Employees[Taxes and Ded''s],Stub),"") -> 131.76 | G21: Other Deduction | I21: =IFERROR(INDEX(Employees[Other Ded''s],Stub),"") -> 0 | K21: Total Taxes and Deductions | M21: =IFERROR(INDEX(Employees[Taxes and Ded''s],Stub) + INDEX(Employees[Other Ded''s],Stub),"") -> 131.76
C22: Regular Deductions
K23: NET PAY | M23: =IFERROR(INDEX(Employees[Net Pay],Stub),"") -> 188.24
C26: =CompanyName -> ADVENTURE WORKS
C27: PEROID | D27: =PeriodEnding -> 41372 | G27: NAME | H27: =IFERROR(INDEX(Employees[Employee Name],Stub),"") -> Denise Smith | K27: EMPLOYEE ID | L27: =IFERROR(INDEX(Employees[ID],Stub),"") -> 1003
C28: Tax Status | E28: =IFERROR(INDEX(Employees[Tax Status],Stub),"") -> 1 | G28: Federal Allowance (From W-4) | I28: =IFERROR(INDEX(Employees[Federal Allow.],Stub),"") -> 3 | K28: Hours Worked | M28: =IFERROR(INDEX(Employees[Reg Hours Worked],Stub),"") -> 35
C29: Hourly Rate | E29: =IFERROR(INDEX(Employees[Hourly Wage],Stub),"") -> 14 | G29: Overtime Rate | I29: =IFERROR(INDEX(Employees[Overtime Rate],Stub),"") -> 0 | K29: Sick Hours | M29: =IFERROR(INDEX(Employees[Sick Hours],Stub),"") -> 0
C30: Social Security Tax | E30: =IFERROR(INDEX(Employees[Soc. Security Tax],Stub) * INDEX(Employees[Gross Pay],Stub),"") -> 33.516 | G30: Federal Income Tax | I30: =IFERROR(INDEX(Employees[Federal Income Tax],Stub) * INDEX(Employees[Gross Pay],Stub),"") -> 148.96 | K30: Vacation Hours | M30: =IFERROR(INDEX(Employees[Vacation Hours],Stub),"") -> 3
C31: Medicare Tax | E31: =IFERROR(INDEX(Employees[Medicare Tax],Stub) * INDEX(Employees[Gross Pay],Stub),"") -> 7.714 | G31: State Tax | I31: =IFERROR(INDEX(Employees[State Tax],Stub) * INDEX(Employees[Gross Pay],Stub),"") -> 12.236 | K31: Overtime Hours | M31: =IFERROR(INDEX(Employees[Overtime Hours],Stub),"") -> 0
C32: Insurance Deduction | E32: =IFERROR(INDEX(Employees[Insurance Deduction],Stub),"") -> 18 | G32: Other Regular Deduction | I32: =IFERROR(INDEX(Employees[Other Reg. Deduction],Stub),"") -> 20 | K32: Gross Pay | M32: =IFERROR(INDEX(Employees[Gross Pay],Stub),"") -> 532
C33: Total Taxes and | E33: =IFERROR(INDEX(Employees[Taxes and Ded''s],Stub),"") -> 240.426 | G33: Other Deduction | I33: =IFERROR(INDEX(Employees[Other Ded''s],Stub),"") -> 0 | K33: Total Taxes and Deductions | M33: =IFERROR(INDEX(Employees[Taxes and Ded''s],Stub) + INDEX(Employees[Other Ded''s],Stub),"") -> 240.426
C34: Regular Deductions
K35: NET PAY | M35: =IFERROR(INDEX(Employees[Net Pay],Stub),"") -> 291.574
C38: =CompanyName -> ADVENTURE WORKS
C39: PERIOD | D39: =PeriodEnding -> 41372 | G39: NAME | H39: =IFERROR(INDEX(Employees[Employee Name],Stub),"") -> Sebastien Motte | K39: EMPLOYEE ID | L39: =IFERROR(INDEX(Employees[ID],Stub),"") -> 1008
C40: Tax Status | E40: =IFERROR(INDEX(Employees[Tax Status],Stub),"") -> 1 | G40: Federal Allowance (From W-4) | I40: =IFERROR(INDEX(Employees[Federal Allow.],Stub),"") -> 0 | K40: Hours Worked | M40: =IFERROR(INDEX(Employees[Reg Hours Worked],Stub),"") -> 50
C41: Hourly Rate | E41: =IFERROR(INDEX(Employees[Hourly Wage],Stub),"") -> 20 | G41: Overtime Rate | I41: =IFERROR(INDEX(Employees[Overtime Rate],Stub),"") -> 0 | K41: Sick Hours | M41: =IFERROR(INDEX(Employees[Sick Hours],Stub),"") -> 1
C42: Social Security Tax | E42: =IFERROR(INDEX(Employees[Soc. Security Tax],Stub) * INDEX(Employees[Gross Pay],Stub),"") -> 70.56 | G42: Federal Income Tax | I42: =IFERROR(INDEX(Employees[Federal Income Tax],Stub) * INDEX(Employees[Gross Pay],Stub),"") -> 313.6 | K42: Vacation Hours | M42: =IFERROR(INDEX(Employees[Vacation Hours],Stub),"") -> 5
C43: Medicare Tax | E43: =IFERROR(INDEX(Employees[Medicare Tax],Stub) * INDEX(Employees[Gross Pay],Stub),"") -> 16.24 | G43: State Tax | I43: =IFERROR(INDEX(Employees[State Tax],Stub) * INDEX(Employees[Gross Pay],Stub),"") -> 25.76 | K43: Overtime Hours | M43: =IFERROR(INDEX(Employees[Overtime Hours],Stub),"") -> 0
C44: Insurance Deduction | E44: =IFERROR(INDEX(Employees[Insurance Deduction],Stub),"") -> 15 | G44: Other Regular Deduction | I44: =IFERROR(INDEX(Employees[Other Reg. Deduction],Stub),"") -> 0 | K44: Gross Pay | M44: =IFERROR(INDEX(Employees[Gross Pay],Stub),"") -> 1120
C45: Total Taxes and | E45: =IFERROR(INDEX(Employees[Taxes and Ded''s],Stub),"") -> 441.16 | G45: Other Deduction | I45: =IFERROR(INDEX(Employees[Other Ded''s],Stub),"") -> 0 | K45: Total Taxes and Deductions | M45: =IFERROR(INDEX(Employees[Taxes and Ded''s],Stub) + INDEX(Employees[Other Ded''s],Stub),"") -> 441.16
C46: Regular Deductions
K47: NET PAY | M47: =IFERROR(INDEX(Employees[Net Pay],Stub),"") -> 678.84
